fUSD/lending_fUSD_20260514
["ID","MTS","AMOUNT","RATE_DAILY","PERIOD"]
[422248244,1778764240000,-892.364592,0.00015068,2]
[422248247,1778764240000,-200.0,0.00015405,2]
[422248245,1778764240000,-4144.25401701,0.00015256,2]
[422248246,1778764240000,-500.0,0.00015405,2]
[422248243,1778764240000,-892.364592,0.00015068,2]
[422248237,1778764240000,-892.364592,0.00015068,2]
[422248241,1778764240000,-892.364592,0.00015068,2]
[422248240,1778764240000,-892.364592,0.00015068,2]
[422248242,1778764240000,-892.364592,0.00015068,2]
[422248239,1778764240000,-892.364592,0.00015068,2]
[422248248,1778764240000,-151.0,0.00015405,2]
[422248238,1778764240000,-892.364592,0.00015068,2]
[422248250,1778764240000,-817.53776541,0.00015405,2]
[422248258,1778764240000,-151.0,0.00015405,2]
[422248249,1778764240000,-151.0,0.00015405,2]
[422248252,1778764240000,-151.0,0.00015405,2]
[422248253,1778764240000,-151.0,0.00015405,2]
[422248254,1778764240000,-151.0,0.00015405,2]
[422248255,1778764240000,-151.0,0.00015405,2]
[422248256,1778764240000,-151.0,0.00015405,2]
[422248257,1778764240000,-151.0,0.00015405,2]
[422248259,1778764240000,-151.0,0.00015405,2]
[422248260,1778764240000,-151.0,0.00015405,2]
[422248262,1778764240000,-151.0,0.00015405,2]
[422248261,1778764240000,-151.0,0.00015405,2]
[422248263,1778764240000,-151.0,0.00015405,2]
[422248251,1778764240000,-151.0,0.00015405,2]
[422248235,1778764240000,-151.0,0.00015,2]
[422248207,1778764240000,-255.111949,0.00015,2]
[422248233,1778764240000,-151.0,0.00015,2]
[422248264,1778764240000,-151.0,0.00015405,2]
[422248210,1778764240000,-255.111949,0.00015,2]
[422248209,1778764240000,-255.111949,0.00015,2]
[422248211,1778764240000,-151.0,0.00015,2]
[422248212,1778764240000,-151.0,0.00015,2]
[422248213,1778764240000,-750.661077,0.00015,2]
[422248214,1778764240000,-750.661077,0.00015,2]
[422248217,1778764240000,-750.661077,0.00015,2]
[422248216,1778764240000,-750.661077,0.00015,2]
[422248215,1778764240000,-750.661077,0.00015,2]
[422248218,1778764240000,-750.661077,0.00015,2]
[422248219,1778764240000,-750.661077,0.00015,2]
[422248231,1778764240000,-435.84892,0.00015,2]
[422248220,1778764240000,-750.661077,0.00015,2]
[422248223,1778764240000,-1017.0,0.00015,2]
[422248224,1778764240000,-435.84892,0.00015,2]
[422248222,1778764240000,-151.0,0.00015,2]
[422248226,1778764240000,-435.84892,0.00015,2]
[422248229,1778764240000,-435.84892,0.00015,2]
[422248225,1778764240000,-435.84892,0.00015,2]
[422248228,1778764240000,-435.84892,0.00015,2]
[422248227,1778764240000,-435.84892,0.00015,2]
[422248230,1778764240000,-435.84892,0.00015,2]
[422248232,1778764240000,-151.0,0.00015,2]
[422248234,1778764240000,-151.0,0.00015,2]
[422248236,1778764240000,-480.43,0.00015068,2]
[422248221,1778764240000,-151.0,0.00015,2]
[422248265,1778764240000,-151.0,0.00015405,2]
[422248208,1778764240000,-255.111949,0.00015,2]
[422248269,1778764240000,-151.0,0.00015405,2]
[422248301,1778764240000,-161.8,0.00016,2]
[422248298,1778764240000,-161.8,0.00016,2]
[422248300,1778764240000,-161.8,0.00016,2]
[422248303,1778764240000,-300.0,0.00016,2]
[422248307,1778764240000,-327.81,0.00016438,2]
[422248305,1778764240000,-1418.48,0.000161,2]
[422248306,1778764240000,-344.67587203,0.00016438,2]
[422248309,1778764240000,-480.43,0.00016438,2]
[422248308,1778764240000,-320.56,0.00016438,2]
[422248310,1778764240000,-6069.126935,0.00016438,2]
[422248312,1778764240000,-6069.126935,0.00016438,2]
[422248316,1778764240000,-6069.126935,0.00016438,2]
[422248297,1778764240000,-161.8,0.00016,2]
[422248313,1778764240000,-6069.126935,0.00016438,2]
[422248315,1778764240000,-6069.126935,0.00016438,2]
[422248311,1778764240000,-6069.126935,0.00016438,2]
[422248317,1778764240000,-6069.126935,0.00016438,2]
[422248319,1778764240000,-151.0,0.00016438,2]
[422248321,1778764240000,-151.0,0.00016438,2]
[422248324,1778764240000,-151.0,0.00016438,2]
[422248323,1778764240000,-151.0,0.00016438,2]
[422248325,1778764240000,-151.0,0.00016438,2]
[422248327,1778764240000,-4442.34461827,0.000165,2]
[422248328,1778764240000,-7431.94628016,0.000165,2]
[422248326,1778764240000,-151.0,0.00016438,2]
[422248330,1778764240000,-2080.17592889,0.00016501,2]
[422248314,1778764240000,-6069.126935,0.00016438,2]
[422248299,1778764240000,-161.8,0.00016,2]
[422248329,1778764240000,-200.0,0.00016501,2]
[422248294,1778764240000,-161.84,0.00016,2]
[422248296,1778764240000,-161.8,0.00016,2]
[422248267,1778764240000,-500.0,0.00015405,2]
[422248268,1778764240000,-151.0,0.00015405,2]
[422248270,1778764240000,-151.0,0.00015405,2]
[422248272,1778764240000,-151.0,0.00015405,2]
[422248271,1778764240000,-151.0,0.00015405,2]
[422248273,1778764240000,-151.0,0.00015405,2]
[422248276,1778764240000,-151.0,0.00015405,2]
[422248275,1778764240000,-151.0,0.00015405,2]
[422248274,1778764240000,-151.0,0.00015405,2]
[422248278,1778764240000,-151.0,0.00015405,2]
[422248277,1778764240000,-151.0,0.00015405,2]
[422248279,1778764240000,-151.0,0.00015405,2]
[422248281,1778764240000,-1934.38338737,0.00015405,2]
[422248266,1778764240000,-151.0,0.00015405,2]
[422248282,1778764240000,-151.0,0.00015405,2]
[422248280,1778764240000,-151.0,0.00015405,2]
[422248295,1778764240000,-161.8,0.00016,2]
[422248292,1778764240000,-1760.0,0.00015963,2]
[422248293,1778764240000,-170.0,0.00015977,2]
[422248290,1778764240000,-200.0,0.00015953,2]
[422248286,1778764240000,-165.0519984,0.00015701,2]
[422248291,1778764240000,-2005.9555727,0.00015953,2]
[422248284,1778764240000,-190.48901714,0.0001553,2]
[422248285,1778764240000,-5636.30005456,0.0001553,2]
[422248287,1778764240000,-181.12926324,0.00015793,2]
[422248289,1778764240000,-6453.0,0.00015797,2]
[422248283,1778764240000,-151.0,0.00015405,2]
[422248288,1778764240000,-1613.0,0.00015797,2]
[422248371,1778764241000,-155.677675,0.00019178,2]
[422248368,1778764241000,-2845.5,0.00019,2]
[422248369,1778764241000,-3460.6,0.00019005,2]
[422248365,1778764241000,-173.65721667,0.000187,2]
[422248366,1778764241000,-1000.0,0.00018746,2]
[422248363,1778764241000,-180.24546421,0.00018613,2]
[422248367,1778764241000,-824.67122955,0.00018903,2]
[422248362,1778764241000,-173.65721667,0.000185,2]
[422248361,1778764241000,-229.3,0.00018481,2]
[422248364,1778764241000,-2405.55389864,0.00018693,2]
[422248370,1778764241000,-1116.0,0.00019114,2]
[422248375,1778764241000,-155.677675,0.00019178,2]
[422248373,1778764241000,-155.677675,0.00019178,2]
[422248374,1778764241000,-155.677675,0.00019178,2]
[422248376,1778764241000,-155.677675,0.00019178,2]
[422248377,1778764241000,-155.677675,0.00019178,2]
[422248360,1778764241000,-2572.9,0.0001841,2]
[422248378,1778764241000,-155.677675,0.00019178,2]
[422248379,1778764241000,-787.643953,0.00019178,2]
[422248380,1778764241000,-787.643953,0.00019178,2]
[422248382,1778764241000,-787.643953,0.00019178,2]
[422248381,1778764241000,-787.643953,0.00019178,2]
[422248383,1778764241000,-787.643953,0.00019178,2]
[422248386,1778764241000,-787.643953,0.00019178,2]
[422248372,1778764241000,-155.677675,0.00019178,2]
[422248357,1778764241000,-1399.0,0.00018307,5]
[422248355,1778764241000,-173.65721667,0.000182,2]
[422248356,1778764241000,-1000.0,0.00018259,7]
[422248385,1778764241000,-787.643953,0.00019178,2]
[422248331,1778764241000,-156.57,0.00016712,2]
[422248333,1778764241000,-229.3,0.00016767,2]
[422248332,1778764241000,-1118.0,0.00016747,5]
[422248336,1778764241000,-618.6204,0.00017,2]
[422248335,1778764241000,-12540.67,0.00017,2]
[422248334,1778764241000,-150.0,0.00016914,2]
[422248337,1778764241000,-200.0,0.00017049,2]
[422248338,1778764241000,-2157.14243826,0.00017049,2]
[422248340,1778764241000,-9035.0,0.00017377,2]
[422248341,1778764241000,-3469.0,0.00017443,2]
[422248339,1778764241000,-2258.0,0.00017377,2]
[422248342,1778764241000,-1009.0,0.00017443,2]
[422248343,1778764241000,-957.0,0.00017443,2]
[422248345,1778764241000,-926.0,0.00017462,2]
[422248347,1778764241000,-625.0,0.00017462,2]
[422248346,1778764241000,-3542.0,0.00017462,2]
[422248348,1778764241000,-1354.0,0.00017462,2]
[422248349,1778764241000,-200.0,0.00017597,2]
[422248351,1778764241000,-173.65721667,0.00018,2]
[422248350,1778764241000,-2236.95670848,0.00017597,2]
[422248352,1778764241000,-350.0,0.00018,2]
[422248353,1778764241000,-500.0,0.00018144,2]
[422248354,1778764241000,-2319.72410669,0.00018145,2]
[422248358,1778764241000,-173.65721667,0.000184,2]
[422248359,1778764241000,-1418.48,0.000184,2]
[422248344,1778764241000,-150.0,0.00017462,2]
[422248384,1778764241000,-787.643953,0.00019178,2]
[422248389,1778764241000,-308.0,0.000198,2]
[422248418,1778764241000,-26760.20964395,0.0002,2]
[422248415,1778764241000,-178.67497879,0.0002,2]
[422248417,1778764241000,-3950.0,0.0002,2]
[422248422,1778764241000,-52298.5789593,0.0002,2]
[422248421,1778764241000,-1058.15001842,0.0002,2]
[422248423,1778764241000,-152.0,0.0002,2]
[422248424,1778764241000,-200.0,0.0002,10]
[422248425,1778764241000,-18047.92,0.0002,2]
[422248426,1778764241000,-400.0,0.0002,2]
[422248428,1778764241000,-2000.0,0.0002001,2]
[422248427,1778764241000,-151.37789196,0.0002,20]
[422248431,1778764241000,-2682.57183977,0.00020337,2]
[422248430,1778764241000,-214.518505,0.000201,10]
[422248433,1778764241000,-1418.48,0.000204,2]
[422248436,1778764241000,-926.0,0.00020462,2]
[422248432,1778764241000,-2572.9,0.00020381,2]
[422248435,1778764241000,-190.48901714,0.00020448,2]
[422248434,1778764241000,-2873.77165228,0.0002041,30]
[422248437,1778764241000,-3542.0,0.00020462,2]
[422248439,1778764241000,-4985.79,0.00020548,2]
[422248438,1778764241000,-625.0,0.00020462,2]
[422248442,1778764241000,-4985.79,0.00020548,2]
[422248441,1778764241000,-4985.79,0.00020548,2]
[422248440,1778764241000,-4985.79,0.00020548,2]
[422248388,1778764241000,-2586.85809042,0.00019789,2]
[422248420,1778764241000,-3818.51221205,0.0002,2]
[422248419,1778764241000,-1310.90285881,0.0002,2]
[422248429,1778764241000,-2958.630803,0.0002002,2]
[422248414,1778764241000,-1552.79383552,0.0002,2]
[422248387,1778764241000,-2494.55939289,0.00019241,2]
[422248416,1778764241000,-25906.72029551,0.0002,2]
[422248391,1778764241000,-314.0,0.000198,2]
[422248390,1778764241000,-1000.0,0.000198,2]
[422248392,1778764241000,-441.0,0.000198,2]
[422248393,1778764241000,-2003.81543517,0.000199,3]
[422248395,1778764241000,-150.0,0.00019914,2]
[422248396,1778764241000,-2273.0,0.0002,2]
[422248394,1778764241000,-4144.25401701,0.000199,2]
[422248398,1778764241000,-1398.0,0.0002,2]
[422248399,1778764241000,-202.0,0.0002,2]
[422248401,1778764241000,-2000.0,0.0002,2]
[422248400,1778764241000,-5117.0,0.0002,2]
[422248397,1778764241000,-3851.0,0.0002,2]
[422248403,1778764241000,-523.0,0.0002,2]
[422248412,1778764241000,-340.5660685,0.0002,2]
[422248410,1778764241000,-175.8020267,0.0002,2]
[422248411,1778764241000,-175.80202671,0.0002,2]
[422248408,1778764241000,-175.8020267,0.0002,2]
[422248409,1778764241000,-175.8020267,0.0002,2]
[422248413,1778764241000,-7076.52822619,0.0002,2]
[422248406,1778764241000,-2367.0,0.0002,2]
[422248407,1778764241000,-175.8020267,0.0002,2]
[422248405,1778764241000,-451.0,0.0002,2]
[422248402,1778764241000,-153.0,0.0002,2]
[422248404,1778764241000,-169.0,0.0002,2]
[422248485,1778764242000,-15000.0,0.00021,2]
[422248482,1778764242000,-199.47026326,0.00021,2]
[422248483,1778764242000,-3409.17594098,0.00021,7]
[422248481,1778764242000,-1208.58873252,0.00021,2]
[422248480,1778764242000,-2367.0,0.00021,2]
[422248477,1778764242000,-196.75,0.00021,2]
[422248478,1778764242000,-169.0,0.00021,2]
[422248476,1778764242000,-523.0,0.00021,2]
[422248473,1778764242000,-15000.0,0.00021,2]
[422248475,1778764242000,-6111.0,0.00021,2]
[422248484,1778764242000,-1559.4220753,0.00021,2]
[422248479,1778764242000,-451.0,0.00021,2]
[422248486,1778764242000,-6111.0,0.00021,2]
[422248500,1778764242000,-5000.0,0.00021918,2]
[422248488,1778764242000,-6111.0,0.00021,2]
[422248489,1778764242000,-525.0485446,0.00021,2]
[422248493,1778764242000,-329.59,0.00021273,2]
[422248490,1778764242000,-229.3,0.00021205,2]
[422248492,1778764242000,-496.38,0.00021264,2]
[422248491,1778764242000,-496.38,0.00021264,2]
[422248496,1778764242000,-156.8306539,0.00021779,2]
[422248495,1778764242000,-9902.87572427,0.000215,2]
[422248494,1778764242000,-2884.75459676,0.00021433,2]
[422248499,1778764242000,-10000.0,0.000219,2]
[422248498,1778764242000,-101768.0,0.000218,2]
[422248502,1778764242000,-1024.4954139,0.00021918,2]
[422248474,1778764242000,-6111.0,0.00021,2]
[422248487,1778764242000,-15000.0,0.00021,2]
[422248469,1778764242000,-2273.0,0.00021,2]
[422248445,1778764242000,-4985.79,0.00020548,2]
[422248470,1778764242000,-3851.0,0.00021,2]
[422248501,1778764242000,-150.0,0.00021918,2]
[422248443,1778764242000,-4985.79,0.00020548,2]
[422248444,1778764242000,-4985.79,0.00020548,2]
[422248446,1778764242000,-4985.79,0.00020548,2]
[422248447,1778764242000,-4985.79,0.00020548,2]
[422248448,1778764242000,-4985.79,0.00020548,2]
[422248450,1778764242000,-4985.79,0.00020548,2]
[422248449,1778764242000,-4985.79,0.00020548,2]
[422248451,1778764242000,-4985.79,0.00020548,2]
[422248453,1778764242000,-4985.79,0.00020548,2]
[422248454,1778764242000,-4985.79,0.00020548,2]
[422248452,1778764242000,-4985.79,0.00020548,2]
[422248456,1778764242000,-4985.79,0.00020548,2]
[422248455,1778764242000,-4985.79,0.00020548,2]
[422248457,1778764242000,-4985.79,0.00020548,2]
[422248460,1778764242000,-4985.79,0.00020548,2]
[422248458,1778764242000,-4985.79,0.00020548,2]
[422248459,1778764242000,-4985.79,0.00020548,2]
[422248462,1778764242000,-4985.79,0.00020548,2]
[422248461,1778764242000,-4985.79,0.00020548,2]
[422248464,1778764242000,-22954.00210992,0.000207,2]
[422248465,1778764242000,-500.0,0.00020883,2]
[422248466,1778764242000,-2781.82699784,0.00020885,2]
[422248463,1778764242000,-4985.79,0.00020548,2]
[422248467,1778764242000,-1973.35553362,0.000209,30]
[422248471,1778764242000,-202.0,0.00021,2]
[422248468,1778764242000,-181.12926324,0.000209,2]
[422248472,1778764242000,-153.0,0.00021,2]
[422248503,1778764242000,-18047.92,0.00021925,2]
[422248506,1778764242000,-2273.0,0.00022,2]
[422248504,1778764242000,-500.0,0.00021971,2]
[422248541,1778764242000,-200.0,0.00023,30]
[422248543,1778764242000,-169.0,0.00023,2]
[422248545,1778764242000,-451.0,0.00023,2]
[422248544,1778764242000,-200.0,0.00023,30]
[422248547,1778764242000,-154.0,0.00023,30]
[422248546,1778764242000,-166.0,0.00023,30]
[422248548,1778764242000,-154.0,0.00023,30]
[422248549,1778764242000,-154.0,0.00023,30]
[422248551,1778764242000,-154.0,0.00023,30]
[422248555,1778764242000,-154.0,0.00023,30]
[422248556,1778764242000,-154.0,0.00023,30]
[422248553,1778764242000,-154.0,0.00023,30]
[422248558,1778764242000,-154.0,0.00023,30]
[422248542,1778764242000,-523.0,0.00023,2]
[422248561,1778764242000,-154.0,0.00023,30]
[422248563,1778764242000,-154.0,0.00023,30]
[422248562,1778764242000,-154.0,0.00023,30]
[422248564,1778764242000,-154.0,0.00023,30]
[422248565,1778764242000,-154.0,0.00023,30]
[422248570,1778764242000,-154.0,0.00023,30]
[422248569,1778764242000,-154.0,0.00023,30]
[422248567,1778764242000,-154.0,0.00023,30]
[422248568,1778764242000,-154.0,0.00023,30]
[422248566,1778764242000,-154.0,0.00023,30]
[422248572,1778764242000,-154.0,0.00023,30]
[422248571,1778764242000,-154.0,0.00023,30]
[422248575,1778764242000,-154.0,0.00023,30]
[422248505,1778764242000,-2991.49051684,0.00021981,2]
[422248560,1778764242000,-154.0,0.00023,30]
[422248538,1778764242000,-202.0,0.00023,2]
[422248574,1778764242000,-154.0,0.00023,30]
[422248536,1778764242000,-2273.0,0.00023,2]
[422248573,1778764242000,-154.0,0.00023,30]
[422248508,1778764242000,-202.0,0.00022,2]
[422248507,1778764242000,-3851.0,0.00022,2]
[422248514,1778764242000,-451.0,0.00022,2]
[422248512,1778764242000,-169.0,0.00022,2]
[422248509,1778764242000,-153.0,0.00022,2]
[422248510,1778764242000,-523.0,0.00022,2]
[422248516,1778764242000,-11709.58328555,0.00022,4]
[422248539,1778764242000,-200.0,0.00023,30]
[422248515,1778764242000,-2367.0,0.00022,2]
[422248517,1778764242000,-450.0,0.00022,2]
[422248518,1778764242000,-3865.19966657,0.0002205,3]
[422248521,1778764242000,-496.38,0.00022327,2]
[422248523,1778764242000,-2572.9,0.00022353,2]
[422248519,1778764242000,-152.0,0.00022171,3]
[422248524,1778764242000,-513.81852189,0.00022407,2]
[422248525,1778764242000,-256.05635231,0.00022407,2]
[422248537,1778764242000,-3851.0,0.00023,2]
[422248535,1778764242000,-151.0,0.00022997,7]
[422248530,1778764242000,-35995.69229312,0.000225,2]
[422248532,1778764242000,-156.57,0.00022603,2]
[422248534,1778764242000,-229.3,0.0002292,2]
[422248531,1778764242000,-5530.0,0.000225,3]
[422248528,1778764242000,-765.41,0.00022466,2]
[422248527,1778764242000,-256.05635228,0.00022407,2]
[422248526,1778764242000,-256.05635228,0.00022407,2]
[422248529,1778764242000,-809.7,0.00022466,2]
[422248533,1778764242000,-1024.4954139,0.00022831,2]
[422248540,1778764242000,-165.01962833,0.00023,2]
[422248613,1778764243000,-6069.126935,0.00023,2]
[422248617,1778764243000,-151.0,0.00023,2]
[422248618,1778764243000,-151.0,0.00023,2]
[422248614,1778764243000,-6069.126935,0.00023,2]
[422248607,1778764243000,-255.111949,0.00023,2]
[422248612,1778764243000,-6069.126935,0.00023,2]
[422248615,1778764243000,-151.0,0.00023,2]
[422248616,1778764243000,-151.0,0.00023,2]
[422248611,1778764243000,-6069.126935,0.00023,2]
[422248606,1778764243000,-3373.91134611,0.00023,2]
[422248610,1778764243000,-255.111949,0.00023,2]
[422248619,1778764243000,-300.0,0.00023,3]
[422248633,1778764243000,-892.364592,0.00023,2]
[422248621,1778764243000,-300.0,0.00023,3]
[422248622,1778764243000,-300.0,0.00023,3]
[422248624,1778764243000,-750.661077,0.00023,2]
[422248623,1778764243000,-300.0,0.00023,3]
[422248629,1778764243000,-892.364592,0.00023,2]
[422248625,1778764243000,-750.661077,0.00023,2]
[422248627,1778764243000,-750.661077,0.00023,2]
[422248626,1778764243000,-750.661077,0.00023,2]
[422248628,1778764243000,-151.0,0.00023,2]
[422248631,1778764243000,-892.364592,0.00023,2]
[422248630,1778764243000,-214.95940296,0.00023,3]
[422248632,1778764243000,-214.95940296,0.00023,30]
[422248604,1778764243000,-1000.0,0.00023,14]
[422248620,1778764243000,-300.0,0.00023,3]
[422248609,1778764243000,-255.111949,0.00023,2]
[422248591,1778764243000,-159.0,0.00023,30]
[422248605,1778764243000,-261631.48589976,0.00023,2]
[422248634,1778764243000,-208.3309892,0.00023,3]
[422248577,1778764243000,-154.0,0.00023,30]
[422248576,1778764243000,-154.0,0.00023,30]
[422248579,1778764243000,-154.0,0.00023,30]
[422248578,1778764243000,-154.0,0.00023,30]
[422248584,1778764243000,-159.0,0.00023,30]
[422248582,1778764243000,-159.0,0.00023,30]
[422248580,1778764243000,-154.0,0.00023,30]
[422248583,1778764243000,-159.0,0.00023,30]
[422248585,1778764243000,-159.0,0.00023,30]
[422248587,1778764243000,-159.0,0.00023,30]
[422248586,1778764243000,-159.0,0.00023,30]
[422248588,1778764243000,-159.0,0.00023,30]
[422248590,1778764243000,-159.0,0.00023,30]
[422248589,1778764243000,-159.0,0.00023,30]
[422248592,1778764243000,-159.0,0.00023,30]
[422248593,1778764243000,-159.0,0.00023,30]
[422248594,1778764243000,-159.0,0.00023,30]
[422248595,1778764243000,-159.0,0.00023,30]
[422248596,1778764243000,-159.0,0.00023,30]
[422248597,1778764243000,-159.0,0.00023,30]
[422248598,1778764243000,-159.0,0.00023,30]
[422248599,1778764243000,-200.0,0.00023,30]
[422248600,1778764243000,-2367.0,0.00023,2]
[422248603,1778764243000,-4754.33510122,0.00023,2]
[422248601,1778764243000,-8018.0,0.00023,2]
[422248602,1778764243000,-363.0,0.00023,30]
[422248608,1778764243000,-255.111949,0.00023,2]
[422248635,1778764243000,-892.364592,0.00023,2]
[422248581,1778764243000,-162.0,0.00023,30]
[422248636,1778764243000,-155.677675,0.00023,2]
[422248671,1778764243000,-3542.0,0.00023462,2]
[422248675,1778764243000,-2000.0,0.00023549,2]
[422248674,1778764243000,-2000.0,0.00023549,2]
[422248673,1778764243000,-2000.0,0.00023549,2]
[422248677,1778764243000,-2000.0,0.00023549,2]
[422248676,1778764243000,-2000.0,0.00023549,2]
[422248678,1778764243000,-2000.0,0.00023549,2]
[422248679,1778764243000,-2000.0,0.00023549,2]
[422248681,1778764243000,-2000.0,0.00023549,2]
[422248680,1778764243000,-2000.0,0.00023549,2]
[422248684,1778764243000,-950.0,0.00023593,2]
[422248683,1778764243000,-950.0,0.00023593,2]
[422248682,1778764243000,-2000.0,0.00023549,2]
[422248686,1778764243000,-950.0,0.00023593,2]
[422248685,1778764243000,-950.0,0.00023593,2]
[422248688,1778764243000,-950.0,0.00023593,2]
[422248690,1778764243000,-950.0,0.00023593,2]
[422248689,1778764243000,-950.0,0.00023593,2]
[422248687,1778764243000,-950.0,0.00023593,2]
[422248692,1778764243000,-881.0,0.00023593,2]
[422248691,1778764243000,-950.0,0.00023593,2]
[422248695,1778764243000,-1000.0,0.00023694,7]
[422248694,1778764243000,-150.0,0.00023671,2]
[422248693,1778764243000,-500.0,0.00023622,2]
[422248697,1778764243000,-1326.43,0.00023748,2]
[422248696,1778764243000,-1024.4954139,0.00023744,2]
[422248637,1778764243000,-155.677675,0.00023,2]
[422248670,1778764243000,-625.0,0.00023462,2]
[422248672,1778764243000,-401.70812466,0.000235,2]
[422248698,1778764243000,-18047.92,0.00023849,2]
[422248668,1778764243000,-824.67122955,0.00023399,2]
[422248669,1778764243000,-926.0,0.00023462,2]
[422248641,1778764243000,-435.84892,0.00023,2]
[422248639,1778764243000,-155.677675,0.00023,2]
[422248638,1778764243000,-155.677675,0.00023,2]
[422248643,1778764243000,-435.84892,0.00023,2]
[422248642,1778764243000,-435.84892,0.00023,2]
[422248645,1778764243000,-787.643953,0.00023,2]
[422248646,1778764243000,-787.643953,0.00023,2]
[422248647,1778764243000,-787.643953,0.00023,2]
[422248644,1778764243000,-151.0,0.00023,2]
[422248648,1778764243000,-787.643953,0.00023,2]
[422248652,1778764243000,-268.58058186,0.0002305,21]
[422248650,1778764243000,-151.0,0.00023,2]
[422248653,1778764243000,-185.09,0.00023168,2]
[422248640,1778764243000,-435.84892,0.00023,2]
[422248654,1778764243000,-155.67492755,0.000232,2]
[422248651,1778764243000,-192.70617574,0.00023,21]
[422248664,1778764243000,-1800.0,0.00023353,2]
[422248665,1778764243000,-1800.0,0.00023353,2]
[422248662,1778764243000,-1800.0,0.00023353,2]
[422248663,1778764243000,-1800.0,0.00023353,2]
[422248667,1778764243000,-1346.0,0.00023353,2]
[422248660,1778764243000,-1800.0,0.00023353,2]
[422248655,1778764243000,-5530.0,0.000232,5]
[422248661,1778764243000,-1800.0,0.00023353,2]
[422248666,1778764243000,-1800.0,0.00023353,2]
[422248658,1778764243000,-2000.0,0.00023353,2]
[422248659,1778764243000,-1986.0,0.00023353,2]
[422248657,1778764243000,-152.0,0.00023216,4]
[422248726,1778764244000,-451.0,0.00024,2]
[422248741,1778764244000,-2572.9,0.00024324,2]
[422248731,1778764244000,-1253.87965228,0.00024,2]
[422248729,1778764244000,-10593.2705128,0.00024,14]
[422248732,1778764244000,-500.0,0.00024,2]
[422248734,1778764244000,-2273.88,0.0002411,2]
[422248735,1778764244000,-3002.89,0.00024174,2]
[422248736,1778764244000,-2423.94,0.00024174,2]
[422248738,1778764244000,-2599.64318728,0.0002421,2]
[422248737,1778764244000,-5584.68,0.00024174,2]
[422248733,1778764244000,-1326.43,0.0002411,2]
[422248745,1778764244000,-261.716233,0.00024658,2]
[422248742,1778764244000,-604.0,0.00024397,2]
[422248744,1778764244000,-1042.56,0.00024658,2]
[422248740,1778764244000,-153.0,0.00024319,2]
[422248743,1778764244000,-261.716233,0.00024658,2]
[422248746,1778764244000,-261.716233,0.00024658,2]
[422248747,1778764244000,-151.0,0.00024658,2]
[422248749,1778764244000,-151.0,0.00024658,2]
[422248748,1778764244000,-151.0,0.00024658,2]
[422248751,1778764244000,-1024.4954139,0.00024658,2]
[422248753,1778764244000,-1097.0,0.00024658,2]
[422248752,1778764244000,-1097.0,0.00024658,2]
[422248730,1778764244000,-3600.0,0.00024,2]
[422248739,1778764244000,-152.0,0.00024261,5]